fUST/lending_fUST_20260121
["ID","MTS","AMOUNT","RATE_DAILY","PERIOD"]
[402938312,1768998650951,-185.79808,0.0002,2]
[402938313,1768998650960,-185.79808,0.0002,2]
[402938314,1768998650969,-185.79808,0.0002,2]
[402938315,1768998650978,-185.79808,0.0002,2]
[402938316,1768998650987,-185.79808,0.0002,2]
[402938317,1768998650996,-185.79808,0.0002,2]
[402938318,1768998651006,-185.79808,0.0002,2]
[402938319,1768998651015,-185.79808,0.0002,2]
[402938320,1768998651024,-185.79808,0.0002,2]
[402938321,1768998651034,-185.79808,0.0002,2]
[402938322,1768998651043,-185.79808,0.0002,2]
[402938323,1768998651053,-185.798076,0.0002,2]
[402938324,1768998651062,-565.224489,0.0002,2]
[402938325,1768998651072,-565.224489,0.0002,2]
[402938326,1768998651082,-151.0,0.0002,2]
[402938327,1768998651091,-565.224489,0.0002,2]
[402938328,1768998651100,-151.0,0.0002,2]
[402938329,1768998651109,-151.0,0.0002,2]
[402938330,1768998651118,-7024.404608,0.0002,2]
[402938331,1768998651127,-565.224489,0.0002,2]
[402938332,1768998651136,-7024.404608,0.0002,2]
[402938333,1768998651145,-565.224489,0.0002,2]
[402938334,1768998651154,-7024.404608,0.0002,2]
[402938335,1768998651162,-565.224489,0.0002,2]
[402938336,1768998651172,-7024.404608,0.0002,2]
[402938337,1768998651181,-565.224489,0.0002,2]
[402938338,1768998651190,-7024.404608,0.0002,2]
[402938339,1768998651199,-7024.404608,0.0002,2]
[402938340,1768998651207,-565.224489,0.0002,2]
[402938341,1768998651216,-565.224489,0.0002,2]
[402938342,1768998651225,-151.0,0.0002,2]
[402938343,1768998651234,-151.0,0.0002,2]
[402938344,1768998651243,-7024.404608,0.0002,2]
[402938345,1768998651251,-151.0,0.0002,2]
[402938346,1768998651260,-151.0,0.0002,2]
[402938347,1768998651269,-7024.404608,0.0002,2]
[402938348,1768998651278,-151.0,0.0002,2]
[402938349,1768998651286,-565.224489,0.0002,2]
[402938350,1768998651295,-169.002192,0.0002,2]
[402938351,1768998651303,-7024.404608,0.0002,2]
[402938352,1768998651312,-151.0,0.0002,2]
[402938353,1768998651322,-565.224489,0.0002,2]
[402938354,1768998651331,-151.0,0.0002,2]
[402938355,1768998651340,-565.224493,0.0002,2]
[402938356,1768998651349,-151.0,0.0002,2]
[402938357,1768998651358,-7024.404608,0.0002,2]
[402938358,1768998651368,-292.81503854,0.00020027,56]
[402938359,1768998651377,-454.65002405,0.00020034,4]
[402938360,1768998651386,-6358.54,0.000201,2]
[402938361,1768998651394,-151.0,0.000201,2]
[402938362,1768998651403,-151.0,0.000201,2]
[402938363,1768998651412,-167.547687,0.000201,2]
[402938364,1768998651422,-418.01029,0.000201,2]
[402938365,1768998651431,-151.0,0.000201,2]
[402938366,1768998651441,-418.01029,0.000201,2]
[402938367,1768998651450,-418.01029,0.000201,2]
[402938368,1768998651459,-418.01029,0.000201,2]
[402938369,1768998651468,-151.0,0.000201,2]
[402938370,1768998651478,-151.0,0.000201,2]
[402938371,1768998651487,-403.185293,0.000201,2]
[402938372,1768998651496,-403.185293,0.000201,2]
[402938373,1768998651505,-403.185293,0.000201,2]
[402938374,1768998651514,-403.185293,0.000201,2]
[402938375,1768998651523,-151.0,0.000201,2]
[402938376,1768998651532,-151.0,0.000201,2]
[402938377,1768998651542,-151.0,0.000201,2]
[402938378,1768998651552,-180.556623,0.000201,2]
[402938379,1768998651562,-250.0,0.000201,10]
[402938380,1768998651571,-298.30400198,0.00020139,10]
[402938381,1768998651581,-160.5,0.0002014,2]
[402938382,1768998651593,-159.15,0.00020175,2]
[402938383,1768998651603,-37170.87,0.000202,2]
[402938384,1768998651612,-10136.96814255,0.000202,2]
[402938385,1768998651622,-250.0,0.000202,10]
[402938386,1768998651637,-454.65002405,0.00020223,4]
[402938387,1768998651647,-156.0,0.00020247,3]
[402938388,1768998651657,-305.41,0.000203,2]
[402938389,1768998651668,-319.2,0.000203,2]
[402938390,1768998651678,-250.0,0.000203,10]
[402938391,1768998651687,-298.30400198,0.00020363,12]
[402938392,1768998651697,-250.0,0.000204,10]
[402938393,1768998651706,-3781.08451416,0.00020403,2]
[402938394,1768998651727,-621.39140172,0.0002,2]
[402938395,1768998651739,-6403.01320628,0.0002,2]
[402938396,1768998651748,-151.0,0.0002,2]
[402938397,1768998651758,-95.91548584,0.00020403,2]
[402938398,1768998651767,-454.65002405,0.00020412,4]
[402938399,1768998651777,-500.0,0.00020437,2]
[402938400,1768998651786,-2000.0,0.00020499,7]
[402938401,1768998651796,-250.0,0.000205,10]
[402938402,1768998651805,-3174.48473026,0.00020529,2]
[402938403,1768998651815,-7227.02,0.00020547,2]
[402938404,1768998651824,-204.09,0.00020563,2]
[402938405,1768998651834,-263.9863693,0.00020569,63]
[402938406,1768998651843,-298.30400198,0.00020586,13]
[402938407,1768998651852,-500.0,0.00020592,2]
[402938408,1768998651862,-500.0,0.000206,2]
[402938409,1768998651871,-4457.30222503,0.000206,2]
[402938410,1768998651883,-250.0,0.000206,10]
[402938411,1768998651892,-454.65002393,0.00020601,4]
[402938412,1768998651902,-154.34293893,0.00020603,30]
[402938413,1768998651911,-500.0,0.00020608,2]
[402938414,1768998651920,-1390.30550397,0.0002061,2]
[402938415,1768998651929,-500.0,0.00020612,2]
[402938416,1768998651939,-500.0,0.00020692,2]
[402938417,1768998651948,-250.0,0.000207,10]
[402938418,1768998651957,-154.34293893,0.00020712,30]
[402938419,1768998651966,-500.0,0.0002076,10]
[402938420,1768998651975,-150.92453773,0.000208,5]
[402938421,1768998651984,-4457.30222503,0.000208,2]
[402938422,1768998651994,-250.0,0.000208,10]
[402938423,1768998652003,-298.30400198,0.0002081,14]
[402938424,1768998652012,-154.34293893,0.00020822,30]
[402938425,1768998652021,-500.0,0.00020831,2]
[402938426,1768998652031,-151.0,0.00020831,2]
[402938427,1768998652040,-151.0,0.00020831,2]
[402938428,1768998652049,-268.447947,0.00020831,2]
[402938429,1768998652059,-1329.16427,0.00020831,2]
[402938430,1768998652068,-1329.16427,0.00020831,2]
[402938431,1768998652078,-1329.16427,0.00020831,2]
[402938432,1768998652087,-9848.083315,0.00020831,2]
[402938433,1768998652096,-467.281561,0.00020831,2]
[402938434,1768998652105,-1329.16427,0.00020831,2]
[402938435,1768998652114,-9848.083315,0.00020831,2]
[402938436,1768998652123,-467.281561,0.00020831,2]
[402938437,1768998652134,-9848.083315,0.00020831,2]
[402938438,1768998652143,-467.281561,0.00020831,2]
[402938439,1768998652153,-9848.083315,0.00020831,2]
[402938440,1768998652162,-467.281561,0.00020831,2]
[402938441,1768998652172,-151.0,0.00020831,2]
[402938442,1768998652181,-2987.135873,0.00020831,2]
[402938443,1768998652191,-151.0,0.00020831,2]
[402938444,1768998652200,-175.266325,0.00020831,2]
[402938445,1768998652209,-151.0,0.00020831,2]
[402938446,1768998652219,-2987.135873,0.00020831,2]
[402938447,1768998652228,-175.266325,0.00020831,2]
[402938448,1768998652238,-151.0,0.00020831,2]
[402938449,1768998652247,-2987.135873,0.00020831,2]
[402938450,1768998652257,-175.266325,0.00020831,2]
[402938451,1768998652266,-175.266325,0.00020831,2]
[402938452,1768998652276,-2987.135873,0.00020831,2]
[402938453,1768998652285,-174.719101,0.00020831,2]
[402938454,1768998652295,-174.719101,0.00020831,2]
[402938455,1768998652305,-174.719101,0.00020831,2]
[402938456,1768998652314,-174.719101,0.00020831,2]
[402938457,1768998652323,-1751.739912,0.00020831,2]
[402938458,1768998652333,-1751.739912,0.00020831,2]
[402938459,1768998652343,-1751.739912,0.00020831,2]
[402938460,1768998652352,-1751.739912,0.00020831,2]
[402938461,1768998652361,-3382.20168,0.00020831,2]
[402938462,1768998652370,-3382.20168,0.00020831,2]
[402938463,1768998652379,-6510.567593,0.00020831,2]
[402938464,1768998652388,-3382.20168,0.00020831,2]
[402938465,1768998652397,-6510.567593,0.00020831,2]
[402938466,1768998652406,-3382.20168,0.00020831,2]
[402938467,1768998652415,-6510.567593,0.00020831,2]
[402938468,1768998652424,-6510.567593,0.00020831,2]
[402938469,1768998652433,-1090.708129,0.00020831,2]
[402938470,1768998652442,-1090.708129,0.00020831,2]
[402938471,1768998652452,-1090.708129,0.00020831,2]
[402938472,1768998652462,-1090.708129,0.00020831,2]
[402938473,1768998652471,-151.0,0.00020831,2]
[402938474,1768998652480,-1103.191374,0.00020831,2]
[402938475,1768998652490,-151.0,0.00020831,2]
[402938476,1768998652499,-1103.191374,0.00020831,2]
[402938477,1768998652508,-151.0,0.00020831,2]
[402938478,1768998652517,-1103.191374,0.00020831,2]
[402938479,1768998652526,-151.0,0.00020831,2]
[402938480,1768998652535,-1103.191374,0.00020831,2]
[402938481,1768998652544,-239.133705,0.00020831,2]
[402938482,1768998652553,-731.875072,0.00020831,2]
[402938483,1768998652562,-731.875072,0.00020831,2]
[402938484,1768998652571,-731.875072,0.00020831,2]
[402938485,1768998652580,-731.875072,0.00020831,2]
[402938486,1768998652591,-151.0,0.00020831,2]
[402938487,1768998652600,-671.465445,0.00020831,2]
[402938488,1768998652610,-671.465445,0.00020831,2]
[402938489,1768998652619,-671.465445,0.00020831,2]
[402938490,1768998652628,-671.465449,0.00020831,2]
[402938491,1768998652638,-151.0,0.00020831,2]
[402938492,1768998652647,-151.0,0.00020831,2]
[402938493,1768998652657,-216.759443,0.00020831,2]
[402938494,1768998652666,-1875.943686,0.00020831,2]
[402938495,1768998652675,-1875.943686,0.00020831,2]
[402938496,1768998652684,-1875.943686,0.00020831,2]
[402938497,1768998652693,-258.023367,0.00020831,2]
[402938498,1768998652703,-2218.334031,0.00020831,2]
[402938499,1768998652712,-1875.943682,0.00020831,2]
[402938500,1768998652722,-721.837546,0.00020831,2]
[402938501,1768998652731,-258.023367,0.00020831,2]
[402938502,1768998652740,-2218.334031,0.00020831,2]
[402938503,1768998652881,-258.023367,0.00020831,2]
[402938504,1768998652891,-2218.334031,0.00020831,2]
[402938505,1768998652900,-721.837546,0.00020831,2]
[402938506,1768998652910,-258.023358,0.00020831,2]
[402938507,1768998652919,-2218.334028,0.00020831,2]
[402938508,1768998652928,-721.837546,0.00020831,2]
[402938509,1768998652937,-721.837537,0.00020831,2]
[402938510,1768998652946,-200.368394,0.00020831,2]
[402938511,1768998652955,-200.368394,0.00020831,2]
[402938512,1768998652964,-200.368394,0.00020831,2]
[402938513,1768998652972,-256.62733,0.00020831,2]
[402938514,1768998652982,-200.368384,0.00020831,2]
[402938515,1768998652991,-173.495433,0.00020831,2]
[402938516,1768998653000,-173.495433,0.00020831,2]
[402938517,1768998653009,-173.495433,0.00020831,2]
[402938518,1768998653018,-173.495435,0.00020831,2]
[402938519,1768998653027,-151.0,0.00020831,2]
[402938520,1768998653036,-151.0,0.00020831,2]
[402938521,1768998653045,-151.0,0.00020831,2]
[402938522,1768998653055,-151.0,0.00020831,2]
[402938523,1768998653064,-1492.386058,0.00020831,2]
[402938524,1768998653073,-1492.386058,0.00020831,2]
[402938525,1768998653083,-1492.386058,0.00020831,2]
[402938526,1768998653093,-1492.386057,0.00020831,2]
[402938527,1768998653102,-151.0,0.00020831,2]
[402938528,1768998653112,-298.612995,0.00020831,2]
[402938529,1768998653121,-151.1,0.00020831,2]
[402938530,1768998653131,-437.828584,0.00020831,2]
[402938531,1768998653140,-298.612995,0.00020831,2]
[402938532,1768998653149,-437.828584,0.00020831,2]
[402938533,1768998653159,-298.612995,0.00020831,2]
[402938534,1768998653168,-298.612997,0.00020831,2]
[402938535,1768998653178,-437.828584,0.00020831,2]
[402938536,1768998653187,-437.828594,0.00020831,2]
[402938537,1768998653196,-500.0,0.00020873,2]
[402938538,1768998653205,-256.66289155,0.000209,2]
[402938539,1768998653215,-250.0,0.000209,10]
[402938540,1768998653225,-2275.0725797,0.00020903,2]
[402938541,1768998653234,-500.0,0.00020914,2]
[402938542,1768998653243,-500.0,0.00020938,2]
[402938543,1768998653252,-435.61990794,0.00020949,2]
[402938544,1768998653261,-500.0,0.00020955,2]
[402938545,1768998653270,-154.34293893,0.00020959,30]
[402938546,1768998653279,-2000.0,0.00020999,7]
[402938547,1768998653288,-233.03314671,0.00021,5]
[402938548,1768998653326,-151.0,0.000192,2]
[402938549,1768998653336,-151.0,0.000195,2]
[402938550,1768998653345,-151.0,0.0002,2]
[402938551,1768998653355,-223.85870615,0.0002,2]
[402938552,1768998653370,-1515.88609225,0.0002,2]
[402938553,1768998653381,-4840.4598424,0.0002,2]
[402938554,1768998653391,-444.19997588,0.0002,2]
[402938555,1768998653400,-288.491551,0.0002,2]
[402938556,1768998653410,-151.0,0.0002,2]
[402938557,1768998653419,-2705.6144844,0.00021,5]
[402938558,1768998653430,-572.71456598,0.00021,5]
[402938559,1768998653490,-395.72,0.00016827,2]
[402938560,1768998653502,-4158.13364874,0.00016827,2]
[402938561,1768998653511,-151.0,0.000192,2]
[402938562,1768998653521,-151.0,0.000192,2]
[402938563,1768998653530,-151.0,0.000195,2]
[402938564,1768998653540,-151.0,0.0002,2]
[402938565,1768998653549,-151.0,0.0002,2]
[402938566,1768998653559,-151.0,0.0002,2]
[402938567,1768998653569,-151.0,0.0002,2]
[402938568,1768998653578,-151.0,0.0002,2]
[402938569,1768998653587,-6488.63780291,0.00021,5]
[402938570,1768998653599,-277.55017792,0.00021,2]
[402938571,1768998653608,-1563.43715378,0.00021,10]
[402938572,1768998653617,-4970.23682627,0.00021,2]
[402938573,1768998653696,-828.82,0.0001814,2]
[402938574,1768998653742,-1654.29364488,0.0001814,2]
[402938583,1768998768699,150.0,8.876e-05,2]
[402938599,1768998858586,5000.0,8.876e-05,2]
[402938601,1768998952183,5000.0,8.876e-05,2]
[402938602,1768998967336,4520.11547236,8.876e-05,2]
[402938603,1768998976345,3496.75952902,8.876e-05,2]
[402938622,1768999751119,-1007.1554703,8.996e-05,2]
[402938623,1768999751141,-150.0,9.087e-05,2]
[402938624,1768999751161,-189.38002314,9.109e-05,2]
[402938625,1768999751180,-548.0,9.13e-05,2]
[402938626,1768999751200,-223.4684273,0.00011109,2]
[402938655,1768999832643,-250.0,0.00012722,2]
[402938656,1768999832654,-189.03665635,0.00012915,2]
[402938657,1768999832662,-223.06325449,0.00014915,2]
[402938658,1768999832672,-150.13194405,0.000154,2]
[402938660,1768999832682,-160.0,0.000169,2]
[402938662,1768999832692,-257.08985264,0.00016915,2]
[402938664,1768999832701,-1368.0,0.00017128,2]
[402938666,1768999832711,-2027.66132047,0.00017128,2]
[402939401,1768999846554,-74.22074872,0.00016817,2]
[402939402,1768999846565,-425.77925128,0.00016817,2]
[402939403,1768999846574,-500.0,0.00016817,2]
[402939404,1768999846583,-500.0,0.00016817,2]
[402939405,1768999846592,-500.0,0.00016817,2]
[402939406,1768999846601,-500.0,0.00016817,2]
[402939407,1768999846609,-500.0,0.00016817,2]
[402939408,1768999846618,-500.0,0.00016817,2]
[402939409,1768999846626,-500.0,0.00016817,2]
[402939410,1768999846635,-500.0,0.00016817,2]
[402939411,1768999846643,-500.0,0.00016817,2]
[402939412,1768999846654,-500.0,0.00016817,2]
[402939413,1768999846663,-500.0,0.00016817,2]
[402939414,1768999846672,-500.0,0.00016817,2]
[402939415,1768999846681,-500.0,0.00016817,2]
[402939416,1768999846692,-643.27169861,0.00016817,2]
[402939417,1768999846703,-625.51583098,0.00016817,2]
[402939418,1768999846712,-500.0,0.00016817,2]
[402939419,1768999846721,-167.23321913,0.00016817,2]
[402939546,1769000828101,-175.65286108,0.00012846,2]
[402939547,1769000828124,-500.0,0.00013009,2]
[402939549,1769000828145,-103.1388801,0.00013273,2]
[402941039,1769000945520,-563.74352784,0.00012622,2]
[402941056,1769001037660,-3744.34484382,0.00012496,2]
[402941057,1769001037669,-492.77278343,0.00013273,2]
[402941058,1769001037690,-7.22721657,0.00013273,2]
[402941059,1769001037699,-500.0,0.00013699,2]
[402941060,1769001037708,-896.8611199,0.00013821,2]
[402941061,1769001037719,-207.27037608,0.00014846,2]
[402941062,1769001037728,-1200.0,0.00014857,2]
[402941063,1769001037737,-300.0,0.00014858,2]
[402941064,1769001037746,-300.0,0.00014858,2]
[402941065,1769001037755,-300.0,0.00014858,2]
[402941066,1769001037764,-3101.72685402,0.00014859,2]
[402941067,1769001037775,-3901.38757581,0.00014859,2]
[402941072,1769001039830,-5055.09953657,0.00014859,2]
[402941073,1769001039842,-3925.93829138,0.00014859,2]
[402941074,1769001039853,-1425.70460476,0.00014859,2]
[402941075,1769001039863,-150.0,0.00016,2]
[402941076,1769001039872,-500.0,0.00016,10]
[402941077,1769001039883,-500.53544838,0.00016,10]
[402941078,1769001039892,-500.0,0.00016715,2]
[402941079,1769001039901,-500.0,0.00016715,2]
[402941080,1769001039910,-500.0,0.00016715,2]
[402941081,1769001039919,-500.0,0.00016715,2]
[402941082,1769001039931,-500.0,0.00016715,2]
[402941083,1769001039939,-500.0,0.00016715,2]
[402941084,1769001039949,-500.0,0.00016715,2]
[402941085,1769001039958,-500.0,0.00016715,2]
[402941086,1769001039967,-500.0,0.00016715,2]
[402941087,1769001039975,-500.0,0.00016715,2]
[402941088,1769001039985,-500.0,0.00016715,2]
[402941089,1769001039993,-500.0,0.00016715,2]
[402941090,1769001040003,-500.0,0.00016715,2]
[402941091,1769001040012,-500.0,0.00016715,2]
[402941092,1769001040021,-500.0,0.00016715,2]
[402941093,1769001040030,-500.0,0.00016715,2]
[402941094,1769001040042,-500.0,0.00016715,2]
[402941095,1769001040051,-500.0,0.00016715,2]
[402941096,1769001040060,-500.0,0.00016715,2]
[402941097,1769001040069,-500.0,0.00016715,2]
[402941098,1769001040078,-217.5515831,0.00016715,2]
[402941099,1769001040090,-500.0,0.00016715,2]
[402941100,1769001040099,-500.0,0.00016715,2]
[402941101,1769001040108,-500.0,0.00016715,2]
[402941102,1769001040118,-500.0,0.00016715,2]
[402941103,1769001040127,-547.84369995,0.00016715,2]
[402941104,1769001040136,-500.0,0.00016715,2]
[402941105,1769001040145,-500.0,0.00016715,2]
[402941106,1769001040154,-500.0,0.00016715,2]
[402941107,1769001040163,-500.0,0.00016715,2]
[402941108,1769001040172,-500.0,0.00016715,2]
[402941109,1769001040181,-185.42751178,0.00016715,2]
[402941110,1769001040190,-500.0,0.00016715,2]
[402941111,1769001040199,-500.0,0.00016715,2]
[402941112,1769001040208,-500.0,0.00016715,2]
[402941113,1769001040218,-449.05037718,0.00016715,2]
[402941114,1769001040229,-50.94962282,0.00016715,2]
[402941115,1769001040238,-449.05037718,0.00016715,2]
[402941116,1769001040249,-50.94962282,0.00016715,2]
[402941117,1769001040258,-500.0,0.00016715,2]
[402941118,1769001040267,-500.0,0.00016715,2]
[402941119,1769001040276,-500.0,0.00016715,2]
[402941120,1769001040286,-500.0,0.00016717,2]
[402941121,1769001040295,-238.88789107,0.00016846,2]
[402941122,1769001040306,-629.0,0.00017128,2]
[402941123,1769001040316,-2148.0,0.00017128,2]
[402941124,1769001040326,-1368.0,0.00017128,2]
[402941125,1769001040335,-417.0,0.00017128,2]
[402941126,1769001040345,-731.842,0.00017128,2]
[402941127,1769001040355,-200.628,0.00017128,2]
[402941128,1769001040364,-3280.99328567,0.00017267,2]
[402941129,1769001040373,-3877.0,0.000174,2]
[402941130,1769001040383,-1000.0,0.00017524,2]
[402941131,1769001040392,-507.6373092,0.0001794,2]
[402941132,1769001040401,-168.0,0.00018106,2]
[402941133,1769001040410,-9465.7943499,0.00018272,2]
[402941134,1769001040419,-1564.384038,0.00018272,2]
[402941135,1769001040429,-160.0,0.000183,2]
[402941136,1769001040438,-150.0,0.00018356,2]
[402941137,1769001040447,-150.0,0.00018356,2]
[402941138,1769001040456,-150.53438118,0.00018356,2]
[402941139,1769001040465,-305.2931436,0.00018356,2]
[402941140,1769001040474,-613.6874177,0.00018356,2]
[402941141,1769001040484,-305.2931436,0.00018356,2]
[402941142,1769001040493,-168.0,0.00018374,2]
[402941143,1769001040502,-4243.28180845,0.00018422,2]
[402941144,1769001040511,-150.0,0.00018493,2]
[402941145,1769001040521,-500.0,0.0001862,2]
[402941146,1769001040530,-500.0,0.0001862,2]
[402941147,1769001040539,-200.0,0.0001863,2]
[402941148,1769001040548,-2716.69520969,0.00018754,2]
[402941149,1769001040558,-821.502604,0.00018757,2]
[402941150,1769001040567,-496.47127164,0.00018784,2]
[402941151,1769001040576,-162.380719,0.00018784,2]
[402941152,1769001040586,-168.3888056,0.00018784,2]
[402941153,1769001040596,-174.61919141,0.00018784,2]
[402941154,1769001040605,-181.08010149,0.00018784,2]
[402941155,1769001040614,-187.78006525,0.00018784,2]
[402941156,1769001040623,-194.72792766,0.00018784,2]
[402941157,1769001040633,-201.93286099,0.00018784,2]
[402941158,1769001040642,-209.40437684,0.00018784,2]
[402941159,1769001040651,-217.15233878,0.00018784,2]
[402941160,1769001040660,-225.18697532,0.00018784,2]
[402941161,1769001040669,-233.51889341,0.00018784,2]
[402941162,1769001040678,-242.15909246,0.00018784,2]
[402941163,1769001040695,-251.11897888,0.00018784,2]
[402941164,1769001040714,-318.81460504,0.00018784,2]
[402941165,1769001040733,-2150.738,0.00018784,2]
[402941166,1769001040755,-500.0,0.000188,30]
[402941167,1769001040776,-500.0,0.000188,30]
[402941168,1769001040793,-150.13194405,0.00018823,56]
[402941169,1769001040816,-270.50540607,0.00018846,2]
[402941170,1769001040837,-160.5850682,0.000189,2]
[402941171,1769001040850,-189.40830517,0.000189,2]
[402941172,1769001040861,-303.10001551,0.000189,2]
[402941173,1769001040872,-500.0,0.00019,2]
[402941174,1769001040881,-500.0,0.00019,2]
[402941175,1769001040892,-500.0,0.00019,2]
[402941176,1769001040902,-500.0,0.00019,2]
[402941177,1769001040913,-500.0,0.00019,2]
[402941178,1769001040923,-500.0,0.00019,2]
[402941179,1769001040933,-512.37507113,0.00019,2]
[402941180,1769001040942,-449.0,0.00019081,120]
[402941181,1769001040953,-154.34293894,0.00019178,30]
[402941182,1769001040962,-167.91,0.000192,2]
[402941183,1769001040972,-165.0,0.00019315,3]
[402941184,1769001040981,-247.6739403,0.00019332,2]
[402941185,1769001040990,-154.34293894,0.00019397,30]
[402941186,1769001040999,-154.34293894,0.00019589,30]
[402941187,1769001041008,-154.34293894,0.00019781,30]
[402941188,1769001041018,-160.0,0.000199,5]
[402941189,1769001041027,-1639.583836,0.000199,5]
[402941190,1769001041036,-1000.0,0.0001992,5]
[402941191,1769001041049,-507.6863,0.0001992,2]
[402941192,1769001041059,-492.3137,0.0001992,3]
[402941193,1769001041068,-1000.0,0.0001994,5]
[402941194,1769001041078,-1000.0,0.0001996,5]
[402941195,1769001041087,-1000.0,0.0001998,5]
[402941196,1769001041096,-160.0,0.0002,4]
[402941197,1769001041105,-160.0,0.0002,3]
[402941198,1769001041116,-154.34293894,0.0002,30]
[402941199,1769001041125,-33021.73983755,0.0002,3]
[402941200,1769001041137,-2881.50761692,0.0002,3]
[402941203,1769001042782,-655.28247245,0.0002,3]
[402941205,1769001042891,-669.25071439,0.0002,3]
[402941220,1769001046338,-772.21935869,0.0002,3]
[402941221,1769001046348,-1000.0,0.0002,5]
[402941222,1769001046358,-300.13019292,0.0002,2]
[402941223,1769001046367,-250.0,0.0002,10]
[402941224,1769001046377,-449.0,0.00020035,120]
[402941225,1769001046387,-250.0,0.000201,10]
[402941226,1769001046397,-629.0,0.00020128,2]
[402941227,1769001046406,-2148.0,0.00020128,2]
[402941228,1769001046415,-263.05653143,0.00020128,2]
[402942530,1769002044126,-1077.96584837,0.00012083,2]
[402942640,1769002231990,-3922.03415163,0.00011962,2]
[402942642,1769002231999,-590.0,0.00012083,2]
[402942645,1769002232009,-194.74027589,0.00012206,2]
[402942647,1769002232019,-796.5,0.00012329,2]
[402942649,1769002232030,-207.76838233,0.0001304,2]
[402942651,1769002232039,-500.0,0.00013273,2]
[402942653,1769002232048,-1200.0,0.00013697,2]
[402942655,1769002232057,-300.0,0.00013698,2]
[402942657,1769002232067,-300.0,0.00013698,2]
[402942659,1769002232077,-300.0,0.00013698,2]
[402942661,1769002232087,-410.751302,0.00013699,2]
[402942663,1769002232097,-1000.0,0.00013699,2]
[402942664,1769002232106,-500.0,0.00013699,2]
[402942665,1769002232115,-500.0,0.00013699,2]
[402942666,1769002232125,-192.39720087,0.0001382,2]
[402942668,1769002232134,-500.0,0.0001382,2]
[402942670,1769002232144,-500.0,0.0001382,2]
[402942672,1769002232153,-500.0,0.0001382,2]
[402942674,1769002232162,-500.0,0.0001382,2]
[402942676,1769002232172,-500.0,0.0001382,2]
[402942678,1769002232181,-500.0,0.0001382,2]
[402942680,1769002232190,-500.0,0.0001382,2]
[402942682,1769002232200,-500.0,0.0001382,2]
[402942684,1769002232209,-500.0,0.0001382,2]
[402942686,1769002232218,-500.0,0.0001382,2]
[402942688,1769002232227,-500.0,0.0001382,2]
[402942690,1769002232236,-500.0,0.0001382,2]
[402942692,1769002232245,-500.0,0.0001382,2]
[402942694,1769002232254,-500.0,0.0001382,2]
[402942696,1769002232263,-500.0,0.0001382,2]
[402942698,1769002232272,-500.0,0.0001382,2]
[402942700,1769002232281,-500.0,0.0001382,2]
[402942702,1769002232290,-500.0,0.0001382,2]
[402942704,1769002232299,-500.0,0.0001382,2]
[402942706,1769002232308,-500.0,0.0001382,2]
[402942708,1769002232317,-500.0,0.0001382,2]
[402942710,1769002232326,-500.0,0.0001382,2]
[402942712,1769002232335,-500.0,0.0001382,2]
[402942714,1769002232346,-500.0,0.0001382,2]
[402942716,1769002232355,-609.13299808,0.0001382,2]
[402942718,1769002232364,-500.0,0.0001382,2]
[402942720,1769002232373,-500.0,0.0001382,2]
[402942722,1769002232382,-500.0,0.0001382,2]